Workbook

Sheet Procent 1
B1: Procent
I2: 0 | R2: 10 | AB2: 20 | AL2: 30 | AV2: 40 | BF2: 50 | BP2: 60 | BZ2: 70 | CJ2: 80 | CT2: 90 | DD2: 100
B3: Hvor mange % orange | DG3: 100%
B5: Hvor mange % orange
B7: Hvor mange % orange
B9: Hvor mange % orange
B11: Hvor mange % grønne?
B13: Hvor mange % grønne?
B15: Hvor mange % grønne?
B17: Hvor mange er orange
B18: eller grønne?
B19: Hvor mange er orange
B20: eller grønne?
B21: Hvor mange er hverken
B22: orange eller grønne?
B23: Hvor mange er hverken
B24: orange eller grønne?
A25: SLUT

Sheet Hjælp - Procent 1
B1: Hjælp - Procent 1
I2: 0 | R2: 10 | AB2: 20 | AL2: 30 | AV2: 40 | BF2: 50 | BP2: 60 | BZ2: 70 | CJ2: 80 | CT2: 90 | DD2: 100
B3: Hvor mange % orange | DG3: 100%
B5: Hvor mange % orange | DG5: 50%
B7: Hvor mange % orange | DG7: 35%
B9: Hvor mange % orange | DG9: 21%
B11: Hvor mange % grønne? | DG11: 82%
B13: Hvor mange % grønne? | DG13: 83%
B15: Hvor mange % grønne? | DG15: 12%
B17: Hvor mange er orange | DG17: 65%
B18: eller grønne?
B19: Hvor mange er orange | DG19: 90%
B20: eller grønne?
B21: Hvor mange er hverken | DG21: 43%
B22: orange eller grønne?
B23: Hvor mange er hverken | DG23: 23%
B24: orange eller grønne?
A25: SLUT

Sheet Procent 2
B1: Procent 2 - HORSE SHOP UDSALG
B3: 1 | C3: Støvler: 50% | M3: 2 | N3: Sadel: 48% | Y3: Stigbøjler: 40% | AJ3: Grimer: 72%
B15: 5 | C15: Hjelm: 28% | N15: Handsker: 34% | Y15: Striglejern: 44% | AJ15: Striglebørste: 68%
B27: 9 | C27: Læderfedt: 12,5% | N27: Ridepisk: 36% | Y27: Longe 25 m: 80% | AJ27: Godbid-poser: 67%
A40: SLUT

Sheet Hjælp - Procent 2
B1: Hjælp - Procent 2 - HORSE SHOP UDSALG
B3: 1 | C3: Støvler: 50% | M3: 2 | N3: Sadel: 48% | Y3: Stigbøjler: 40% | AJ3: Grimer: 72%
AU9: Er alle måderne lige gode? . Hvorfor? . Hvorfor ikke? . Hvilke ville du ikke bruge?
B15: 5 | C15: Hjelm: 28% | N15: Handsker: 34% | Y15: Striglejern: 44% | AJ15: Striglebørste: 68%
B27: 9 | C27: Læderfedt: 12,5% | N27: Ridepisk: 36% | Y27: Longe 25 m: 80% | AJ27: Godbid-poser: 67%
B28: Valgte du at mærke 12 eller 13 celler op?
A40: SLUT

Sheet Procent 3
B1: Procent 3 - HORSE SHOP UDSALG
B3: Støvler: | C3: 50% | E3: Sadel: | F3: 48% | H3: Stigbøjler: | I3: 40% | K3: Grimer: | L3: 72%
B5: Hjelm: | C5: 28% | E5: Handsker: | F5: 34% | H5: Striglejern: | I5: 44% | K5: Striglebørste: | L5: 68%
B7: Læderfedt: | C7: 12.50% | E7: Ridepisk: | F7: 36% | H7: Longe 25 m: | I7: 80% | K7: Godbid-poser: | L7: 67%
N8: Rabat- | P8: Pris efter
K9: Pris | L9: Rabat | M9: Rabat-gæt | N9: formel | P9: rabat:
B10: Hvad koster støvler, når den almindelige pris er: 600,00 kr? | K10: 600.00 | L10: 300 | M10: 290.00 | N10: =K10*C3 -> 300.00 | O10: =K10*C3 | P10: hvordan?
B11: Hvad koster sadler, når den almindelige pris er: 3500,00 kr? | K11: 3500.00
B12: Hvad koster stigbøjler, når den almindelige pris er: 960,00 kr? | K12: 960.00
B13: Hvad koster en grime, når den almindelige pris er: 280,00 kr? | K13: 280.00
B14: Hvad koster en hjelm, når den almindelige pris er: 880,00 kr? | K14: 880.00
B15: Hvad koster handsker, når den almindelige pris er: 450,00 kr? | K15: 450.00
B16: Hvad koster striglejern, når den almindelige pris er: 112,00 kr? | K16: 112.00
B17: Hvad koster striglebørste, når den almindelige pris er: 98,50 kr? | K17: 98.50
B18: Hvad koster læderfedt, når den almindelige pris er: 219,00 kr? | K18: 219.00
B19: Hvad koster en ridepisk, når den almindelige pris er: 75,00 kr? | K19: 75.00
B20: Hvad koster en longe, når den almindelige pris er: 175,00 kr? | K20: 175.00
B21: Hvad koster en godbidpose, når den almindelige pris er: 59,00 kr? | K21: 59.00
A25: SLUT

Sheet Hjælp - Procent 3
B1: Hjælp Procent 3 - HORSE SHOP UDSALG
B3: Støvler: | C3: 50% | E3: Sadel: | F3: 48% | H3: Stigbøjler: | I3: 40% | K3: Grimer: | L3: 72%
B5: Hjelm: | C5: 28% | E5: Handsker: | F5: 34% | H5: Striglejern: | I5: 44% | K5: Striglebørste: | L5: 68%
B7: Læderfedt: | C7: 12.50% | E7: Ridepisk: | F7: 36% | H7: Longe 25 m: | I7: 80% | K7: Godbid-poser: | L7: 67%
N8: Rabat- | P8: Pris efter
K9: Pris | M9: Rabat-gæt | N9: formel | P9: rabat:
B10: Hvad koster støvler, når den almindelige pris er: 600,00 kr? | K10: 600.00 | M10: 300.00 | N10: =K10*C3 -> 300.00 | O10: =K10*C3 | P10: =K10-N10 -> 300.00 | Q10: --> | R10: =K10-N10
B11: Hvad koster sadler, når den almindelige pris er: 3500,00 kr? | K11: 3500.00 | N11: =K11*F3 -> 1680.00 | P11: =K11-N11 -> 1820.00 | Q11: --> | R11: …
B12: Hvad koster stigbøjler, når den almindelige pris er: 960,00 kr? | K12: 960.00 | N12: =K12*I3 -> 384.00 | P12: 576.00 | Q12: --> | R12: …
B13: Hvad koster en grime, når den almindelige pris er: 280,00 kr? | K13: 280.00 | N13: =K13*L3 -> 201.60 | P13: 78.40 | Q13: --> | R13: …
B14: Hvad koster en hjelm, når den almindelige pris er: 880,00 kr? | K14: 880.00 | N14: =K14*C5 -> 246.40 | P14: 633.60 | Q14: --> | R14: …
B15: Hvad koster handsker, når den almindelige pris er: 450,00 kr? | K15: 450.00 | N15: =K15*F5 -> 153.00 | P15: 297.00 | Q15: --> | R15: …
B16: Hvad koster striglejern, når den almindelige pris er: 112,00 kr? | K16: 112.00 | N16: =K16*I5 -> 49.28 | P16: 62.72 | Q16: --> | R16: …
B17: Hvad koster striglebørste, når den almindelige pris er: 98,50 kr? | K17: 98.50 | N17: =K17*L5 -> 66.98 | P17: 31.52 | Q17: --> | R17: …
B18: Hvad koster læderfedt, når den almindelige pris er: 219,00 kr? | K18: 219.00 | N18: =K18*C7 -> 27.38 | P18: 191.63 | Q18: --> | R18: …
B19: Hvad koster en ridepisk, når den almindelige pris er: 75,00 kr? | K19: 75.00 | N19: =K19*F7 -> 27.00 | P19: 48.00 | Q19: --> | R19: …
B20: Hvad koster en longe, når den almindelige pris er: 175,00 kr? | K20: 175.00 | N20: =K20*I7 -> 140.00 | P20: 35.00 | Q20: --> | R20: …
B21: Hvad koster en godbidpose, når den almindelige pris er: 59,00 kr? | K21: 59.00 | N21: =K21*L7 -> 39.53 | P21: 19.47 | Q21: --> | R21: =K21-N21
A25: SLUT

Sheet Procent 4
B1: Procent 4
B3: Biograf 1
B4: røde sæder | C4: 27
B5: gule sæder | C5: 27
B6: blå sæder | C6: 50
B7: i alt | C7: =SUM(C4:C6) -> 104
B13: Biograf 2
B14: røde sæder | C14: 20
B15: gule sæder | C15: 20
B16: blå sæder | C16: 40
B17: i alt | C17: =SUM(C14:C16) -> 80
B23: Biograf 3
B24: røde sæder | C24: 40
B25: gule sæder | C25: 60
B26: blå sæder | C26: 100
B27: i alt | C27: =SUM(C24:C26) -> 200
A33: SLUT

Sheet Hjælp - Procent 4
B1: Hjælp - Procent 4
B3: Biograf 1
B4: røde sæder | C4: 27
B5: gule sæder | C5: 27
B6: blå sæder | C6: 50
B7: i alt | C7: =SUM(C4:C6) -> 104
B13: Biograf 2
B14: røde sæder | C14: 20
B15: gule sæder | C15: 20
B16: blå sæder | C16: 40
B17: i alt | C17: =SUM(C14:C16) -> 80
B23: Biograf 3
B24: røde sæder | C24: 40
B25: gule sæder | C25: 60
B26: blå sæder | C26: 100
B27: i alt | C27: =SUM(C24:C26) -> 200
A33: SLUT

Sheet Ekstra 1
B1: Ekstra 1
B3: Biograf 1
B4: røde sæder | C4: 27
B5: gule sæder | C5: 27
B6: blå sæder | C6: 50
B7: i alt | C7: =SUM(C4:C6) -> 104
B13: Biograf 2
B14: røde sæder | C14: 20
B15: gule sæder | C15: 20
B16: blå sæder | C16: 40
B17: i alt | C17: =SUM(C14:C16) -> 80
B23: Biograf 3
B24: røde sæder | C24: 40
B25: gule sæder | C25: 60
B26: blå sæder | C26: 100
B27: i alt | C27: =SUM(C24:C26) -> 200
C33: Biograf 1 | D33: Biograf 2 | E33: Biograf 3
B34: røde sæder | C34: 27 | D34: 20 | E34: 40
B35: gule sæder | C35: 27 | D35: 20 | E35: 60
B36: blå sæder | C36: 50 | D36: 40 | E36: 100
B37: i alt | C37: =SUM(C34:C36) -> 104 | D37: =SUM(D34:D36) -> 80 | E37: =SUM(E34:E36) -> 200
A38: SLUT

Sheet Ekstra 2
B1: Ekstra 2
C3: Biograf 1 | D3: Biograf 2 | E3: Biograf 3
B4: røde sæder | C4: 27 | D4: 20 | E4: 40
B5: gule sæder | C5: 27 | D5: 20 | E5: 60
B6: blå sæder | C6: 50 | D6: 40 | E6: 100
B7: i alt | C7: =SUM(C4:C6) -> 104 | D7: =SUM(D4:D6) -> 80 | E7: =SUM(E4:E6) -> 200
A38: SLUT

Sheet ORDBOG
A1: 5 | C1: ORDBOG er skrivebeskyttet af tekniske årsager - Michael Scheuer | D1: Klik på linkene i kolonne F:J eller scroll med musen nedover siden.
C2: ORDBOG
C4: stikord | D4: Bemærk: Anførselstegn "tekst" bruges i denne ordbog kun til at forklare, hvad der skal skrives i en celle. Anførselstegnene skal altså ikke skrives med! De blå ord kan du finde som stikord. Du kan også finde stikordene i kolonne F, G og H. Et klik på ordet vil bringe dig til forklaringen... | F4: stikord
C6: - | D6: regnetegn for subtraktion (minus) (trække fra) | F6: sub-trak-tion
C7: * | D7: regnetegn for multiplikation (gange) | F7: multi-plika-tion
C8: / | D8: regnetegn for division (dividere) | F8: divi-sion
C9: + | D9: regnetegn for addition (sum) (lægge sammen) | F9: addi-tion
C10: = | D10: indledning til alle formler. Bruges også ved simpel sum, f.eks. "=5,3+7,4". Resultatet i formelcellen vil være 12,7
C11: addition | D11: Brug tasten "+" til regningsarten addition (plus) | F11: reg-nings-art | G11: plus
C12: alt | D12: Tast. Bruges til særlige ting (for eksempel genvejstaster). Pas lidt på!
C13: alt Gr | D13: Tast. Bruges til særlige ting (det tredje tegn på nogle taster, for eksempel "@"). Pas lidt på!
C14: Annuller fortryd | D14: Knap. Hvis du har trykket på knappen Fortryd - og du så alligevel gerne vil bruge det… | F14: knap | G14: fortryd
C15: Autosum | D15: Knap. Klik på en tom celle under de celler, du vil have lagt sammen og klik på knappen. Eller klik på en tom celle til højre for nogle celler, du vil have lagt sammen… | F15: celle
C16: B3:D5 | D16: skrivemåde for alle 9 celler fra B3 til D5 B3, B4, B5, C3, C4, C5, D3, D4, D5
C17: celle | D17: Hver lille firkant i regnearket er en celle. Cellen kan rumme TAL, FORMEL eller TEKST. Hvis du blander dem, bliver det opfattet som TEKST. Cellen opkaldes efter kolonnen og rækken, den er i. F.eks. står der ORDBOG i celle C2 og i krydset mellem kolonne B og række 3 er cellen B3 grøn. Celle B1 er den aktive celle. | F17: kolon-ne | G17: række
C18: ctrl | D18: Tast. Bruges til særlige ting (for eksempel genvejstaster). Pas lidt på!
C19: cursor | D19: I Excel er musepilen ændret, så det liger et stort, hvidt plus-tegn. Når du skriver tekst, tal eller formel i en celle, bliver cursoren til en lodret, blinkende sort pind. | F19: tekst | G19: tal | H19: formel | I19: celle | J19: plus-tegn
C20: decimaltal | D20: Tal, der indeholder et komma. F.eks. 8,25 eller 0,746 eller 13,0. Decimalerne er cifrene efter kommaet.
C21: del | D21: Tast. Delete eller del sletter en celles indhold. Brug den, hvis du fortryder en indtastning bagefter | F21: delete
C22: dele | D22: Brug tasten "/" til regningsarten division (dividere) | F22: reg-nings-art
C23: delete | D23: Tast. Del eller delete sletter en celles indhold. Brug den, hvis du fortryder en indtastning bagefter | F23: del
C24: diagram - guiden diagram | D24: Med guiden diagram kan du lave forskellige diagrammer, f.eks. søjle- eller lagkagediagrammer. Der er mange indstillingsmuligheder, som du må undersøge nærmere selv.
C25: dialogboks | D25: På skærmen åbner en mindre ramme (et vindue), hvor du bliver bedt om flere oplysninger. Det sker f.eks., når du klikker på knappen Åbn. Så hjælper dialogboksen dig med at finde det regneark, du vil åbne. | F25: åbn | G25: regne-ark
C26: division | D26: Brug tasten "/" til regningsarten division (dele) | F26: reg-nings-art
C27: dobbeltklik | D27: To klik på venstre musetast hurtigt efter hinanden. | F27: klik
C28: enter | D28: Tast. Afslutter indtastning i en celle. Den kan også hedde Return | F28: return
C29: esc | D29: Tast. Brug den hvis du fortryder en indtastning - mens du er i gang. Esc betyder Escape: Flygt!
C30: Excel Hjælp | D30: Knap. Her er der meget hjælp at hente. Men noget af det er svært at læse og svært at forstå - og så er det jo ikke til megen hjælp!
C31: F2 | D31: Funktionstast på tastaturet: Bruges, hvis du skal rette i indholdet af en celle. | F31: celle
C32: faneblad | D32: Nede i den første grå linie under cellerne kan du klikke på forskellige regneark. I et helt nyt regneark er der normalt tre ark, og de kaldes Ark 1, Ark 2 og Ark 3. På billedet er der to faneblade: Øvelse 1 og ORDBOG | F32: klik | G32: regne-ark
C33: Flyt | D33: Knap. Du kan flytte indholdet fra én celle til en anden. Se klip, kopier og sæt ind | F33: klip | G33: kopier | H33: sæt ind
C34: formatér | D34: Formatér celle: Højreklik på en celle og du kan vælge forskellige måder, cellen kan se ud på. Skal det være en tekstcelle? en talcelle? Hvor mange decimaler? Skal indholdet stå til venstre, i midten eller til højre? … Der er mange muligheder | F34: højre-klik | G34: celle
C35: formel | D35: Du kan f.eks. lægge tal fra forskellige celler sammen i en ny celle. I den nye celle skriver du formlen. En formel begynder altid med "=", f.eks. summen af tal i cellerne B4+B5+B6+B7 skal lægges sammen i celle B8. I celle B8 skriver du: "=SUM(B4:B7)" Se tegning ved formellinie | F35: formel-linie
C36: formellinie | D36: I den nederste grå linie lige over kolonnerne, kan du se indholdet af en celle. Hvis cellen rummer en formel, kan du se formlen i denne linie - i cellen vil der jo nok stå et tal. Lige til venstre for formellinien er der et lighedstegn. På billedet er celle B8 aktiv og indholdet er en formel: =SUM(B4:B7) | F36: celle | G36: formel | H36: tal
C37: Fortryd | D37: Knap. Fortryd seneste indtastning. Knappen kan huske mange indtastninger! Se også Annuller Fortryd, del eller delete samt esc
C38: gange | D38: Brug tasten "*" til regningsarten multiplikation | F38: reg-nings-art | G38: multi-plika-tion
C39: Gem | D39: Knap. Gemmer dit regneark på disk. Hvis det er et nyt regneark, bliver du bedt om et navn til regnearket. Hvis det er et regneark, du har hentet fra disken og arbejdet videre med, overskrives det oprindelige. Gem dit arbejde jævnligt. | F39: regne-ark
C40: Guiden Diagram | D40: Knap. Guiden Diagram hjælper dig med at lave diagrammer. Der er en øvelse i brug af denne knap i Fordybelseshæfte 5
C41: Hent ark | D41: Knap. Klik på den, når du vil hente et regneark. | F41: klik | G41: regne-ark
C42: højreklik | D42: Et klik på højre musetast | F42: klik
C43: højrestille | D43: Al tekst eller tal passer til en lodret linie i højre side af cellen. | F43: tekst | G43: tal | H43: celle
C44: ikon | D44: Et lille billede - se knap | F44: knap
C45: indhold | D45: Se celle | F45: celle
C46: klik | D46: Et tryk på en musetast, hvor du slipper tasten hurtigt igen. | F46: tryk
C47: Klip | D47: Knap. Du kan flytte indholdet fra én celle til en anden. Se også kopier og sæt ind. Gælder for tal og tekst. Pas på med formler! | F47: flytte | G47: kopier | H47: sæt ind
C48: knap | D48: Den eller de linier under titellinien, der har små knapper eller ikoner, man kan klikke på med venstreklik. Hvis du holder musen stille over et ikon, kommer der en forklarende tekst. Den forsvinder ret hurtigt igen… | F48: titel-linie | G48: klik | H48: ven-stre-klik
C49: kolonne | D49: Er en samling af celler, der står ovenpå hinanden. Kolonne C rummer alle stikordene i dette leksikon. Kolonne B er gul og lidt smallere end de andre kolonner. Se også række | F49: celle | G49: række
C50: kopier | D50: Knap. Virker næsten som klip. Men originalerne bliver liggende - se også klip og sæt ind | F50: klip | G50: sæt ind
C51: linie | D51: Er det samme som række | F51: række
C52: markér | D52: Du kan markere flere celler ved at holde venstre musetast ned og trække pilen afsted. Du kan også markere flere celler ved at holde SHIFT-tasten nede og trykke på piletasterne på tastaturet. Hvis du vil markere en hel kolonne, skal du klikke med venstre musetast på kolonnens navn, f.eks. klik på "C", hvis du vil markere hele kolonne C. | F52: SHIFT | G52: tryk | H52: pile-tast | I52: kolon-ne | J52: klik
C53: menu | D53: En slags spiseseddel: Overblik over hvad du kan vælge. Hvis du klikker på "Filer" i menulinien på skærmen, får du en menu med valg. Højreklikker du på en celle, et rækketal eller et kolonnebogstav, får du helt andre menuer. | F53: menu-linie | G53: højre-klik
C54: menu med højreklik | D54: Klikker du på højre musetast, kommer der en særlig menu frem. Den passer til det sted, du har musen på skærmen. Der er altså forskel på de højremenuer, du kan få frem forskellige steder på skærmen.
C55: menulinie | D55: Den øverste grå linie lige under titellinien har nogle tekster: Filer / Rediger / Vis / … Venstreklik på et ord åbner en menu med en masse muligheder. | F55: titel-linie | G55: ven-stre-klik
C56: minus | D56: Brug tasten "-" til regningsarten subtraktion | F56: reg-nings-art | G56: "-" | H56: sub-trak-tion
C57: multipli-kation | D57: Brug tasten "*" til regningsarten multiplikation (gange) | F57: reg-nings-art | G57: "*" | H57: gange
C58: musepil | D58: I Excel er musepilen ændret, så det liger et stort, hvidt plus-tegn. Se også cursor. | F58: cursor
C59: numerisk tastatur taltastatur | D59: taltasterne til højre på dit tastatur. Hvis de ikke giver tal, når du trykker, skal du trykke en enkelt gang på tasten "Num Lock"
C60: Ny | D60: Knap. Hvis du vil åbne et nyt og helt tomt regneark, hvor du selv kan bestemme. | F60: regne-ark
C61: piletaster | D61: Du kan spare på "musefingrene" ved at bruge piletasterne på dit tastatur.
C62: plus | D62: Brug tasten "+" til regningsarten addition | F62: reg-nings-art | G62: "+" | H62: addi-tion
C63: plus-tegn | D63: I Excel er musepilen ændret, så det ligner et stort, hvidt plus-tegn. Se også cursor. | F63: cursor
C64: regneark | D64: En samling af små celler, der kan indeholde tal, tekst eller formel. Et regneark kan være opdelt i flere regneark (lag). Typisk er Excel indstillet til at have tre lag, nemlig Ark 1, Ark 2 og Ark 3. Microsoft kalder samlingen for en projektmappe og de tre ark for regneark. Vi kalder det hele for regneark! Se også faneblad | F64: celle | G64: tal | H64: tekst | I64: formel | J64: fane-blad
C65: regnings-arter | D65: Se de fire regnetegn "+", "-", "*" og "/" | F65: addi-tion (+) | G65: sub-trak-tion (-) | H65: multi-plika-tion (*) | I65: divi-sion (/)
C66: return | D66: tasten hedder også Enter - "den med den knækkede pil" | F66: enter
C67: række | D67: Er en samling celler ved siden af hinanden. Række 3 er orange og lidt tyndere end de andre rækker i denne ordbog. På billedet er række 2 markeret. Se også kolonne | F67: celle | G67: kolon-ne
C68: SHIFT | D68: Tast. Hold den nede, hvis du vil skrive et stort bogstav eller symbolerne over tallene (f.eks. "%", eller paranteser) SHIFT+a giver bogstavet A Står du i celle D4, trykker SHIFT og klikker på K12, mærkes cellerne D4:K12 op (bliver blå). Du kan også bruge piletaster for at nå hen til celle K12... Se også CTRL, ALT og AltGr | F68: CTRL | G68: ALT | H68: AltGr
C69: Sortér faldende | D69: Knap. Hvis du vil ordne navnene i alfabetisk rækkefølge eller vise tallene i størrelsesorden. Du kan mærke flere kolonner og rækker op samtidig, Så sorteres på den venstre kolonne og resten følger med! Se også Sorter stigende. | F69: sortér stig-ende
C70: Sortér stigende | D70: Knap. Brugt til denne ordbog! Stigende betyder at rækkefølgen BCA bliver til ABC - faldende giver CBA. Stigende betyder at cifrene 231 bliver til 123 - faldende giver 321. Se også Sorter faldende. | F70: sortér fald-ende
C71: Stavekontrol | D71: Knap. Knappen kan lave stavekontrol på en celle eller hele arket. Du bestemmer selv i en dialogboks. | F71: dialog-boks
C72: subtraktion | D72: Brug tasten "-" til regningsarten subtraktion (minus) | F72: reg-nings-art | G72: "-" | H72: sub-trak-tion
C73: SUM | D73: formel - bruges sammen med "=", f.eks. =SUM(B3:D5) er summen af tal i cellerne B3, B4, B5, C3, C4, C5, D3, D4, D5 - se også autosum | F73: B3:D5 | G73: auto-sum
C74: Sæt ind | D74: Knap. Hvis du har brugt knappen Klip eller knappen Kopier, kan du bruge denne knap til at sætte udklippet ind med igen. Bruges f.eks., hvis du vil kopiere en talrække til et andet sted i regnearket. | F74: klip | G74: kopiér | H74: regne-ark
C75: søjle | D75: Er det samme som kolonne. | F75: kolon-ne
C76: tal | D76: Skriver du et tal i en celle, højrestilles tallet automatisk. Hvis du vil have decimaler, skal du indstille cellen - se decimal | F76: celle | G76: højre-stil | H76: deci-mal
C77: tast | D77: En af plasticdimserne på tastaturet ELLER et tryk på en tast. "Tast Esc" betyder: Tryk på den plasticdims, der har teksten Esc skrevet på.
C78: tekst | D78: Skriver du tekst i en celle, venstrestilles den. Skriver du "8,25 kr" opfattes det som tekst selvom der er tal med. Det er "kr" der gør det til tekst. | F78: tekst | G78: celle | H78: ven-stre-stil
C79: titellinie | D79: Øverste linie i vinduet. Der står "Microsoft Excel" og navnet på det regneark, du har åbnet - f.eks. "Jakobs tabeller.xls" eller "4 Øvelse 1.xls" | F79: regne-ark
C80: tryk | D80: Et klik på en musetast, hvor du holder tasten nede. Når du flytter musen med et tryk, vil der ske noget: Celler mærkes op eller punkter/vinduer flyttes… Der er forskel på højre og venstre musetast - både med klik og med tryk. | F80: klik | G80: tryk
C81: Udskriv | D81: Knap. Vær varsom med at klikke på denne knap. Ofte er er ingen grund til at skrive dit regneark ud. Spørg altid din lærer, om det er i orden at skrive ud på printer (tænk på alt det skov, der bliver fældet!). Se også Vis udskrift… Hvis du vil styre printet, skal du benytte CTRL+p | F81: vis ud-skrift | G81: CTRL
C82: venstreklik | D82: Et klik på venstre musetast | F82: klik
C83: venstrestille | D83: Al tekst eller tal passer til en lodret linie i venstre side af cellen. Alle tekster i dette leksikon er venstrestillede. | F83: tekst | G83: tal | H83: celle
C84: vindue | D84: Se dialogboks | F84: dialog-boks
C85: Vis udskrift | D85: Knap. I stedet for at skrive ud på printer, er det mange gange nok at kunne se en pæn udskrift PÅ SKÆRMEN. Og det bruger du denne knap til!
C86: værktøjs-linie | D86: En samling af knapper med forskellige muligheder | F86: knap
C87: Ændre størrelse | D87: Tryk venstre musetast ned på et af de 8 sorte felter og træk. Når du slipper musen, har figuren fået nye mål. Hvis du vil bevare forholdet mellem længde og højde, skal du holde SHIFT-tasten nede, mens du trækker i et af de 4 sorte hjørner.
C88: Åbn | D88: Knap. Hvis du skal hente et regneark, der ligger på en harddisk eller lignende, klikker du på denne kan. Der kommer en dialogboks, hvor du kan søge og vælge regneark. | F88: dialog-boks
C89: CTRL | D89: Tast. Hold den nede, hvis du vil benytte særlige funktioner CTRL+a mærker alle celler op i regnearket. CTRL+c kopierer det opmærkede CTRL+v sætter det kopierede ind CTRL+s gemmer dit arbejde CTRL+p bruges til printerudskrift Der er mange andre muligheder med CTRL-tasten Se også SHIFT, ALT og AltGr | F89: SHIFT | G89: ALT | H89: AltGr
C90: ALT | D90: Tast. Et tryk på tasten kan efterfølges af et andet tastetryk. ALT-i-i (ALT efterfulgt af et tryk på i efterfulgt af et tryk på i): ALT åbner menulinien - i åbner "Indsæt" og i åbner "Diagram". ALT bruges altså sammen med de understregede bogstaver i menuer. ALT+F4 lukker det aktive vindue og program! Der er mange andre muligheder med ALT-tasten Se også SHIFT, CTRL og AltGr | F90: SHIFT | G90: CTRL | H90: AltGr
C91: AltGr | D91: Tast. Hold tasten nede, hvis du vil benytte tredje mulighed på en tast… AltGr+2 giver @ AltGr+4 giver $ AltGr+9 giver ] Der er flere kombinationer. Se også SHIFT, CTRL og ALT | F91: SHIFT | G91: CTRL | H91: ALT
